Cogmind - Beta 16.1 @@@ ROGUE MODE // 2026.04.23 @ 16:25:36 Player: Elxavo Result: Destroyed by W4-95Q(j) with Overtuned Pulse Rifle Performance ------------- Evolutions (0) 0 Regions Visited (4) 800 Robots Destroyed (17) 85 Value Destroyed (354) 354 Prototype IDs (2) 40 Alien Tech Used (0) 0 Bonus (800) 800 TOTAL SCORE: 2079 Bonus ------- Registered with UFD 300 Met Optimus in HQ 500 Cogmind --------- Core Integrity 0/250 Matter 273/300 Energy 160/160 System Corruption 0% Temperature Warm (182) Movement Core (3550) Ox70 Location -8/Scraptown Parts ------- > --- POWER (1) -------- Light Nuclear Core > --- PROPULSION (2) --- Overtuned Scrapsphere > --- UTILITY (2) ------ Humpback > --- WEAPON (2) ------- Particle Cannon Rocket Launcher > --- INVENTORY (35) --- Light Deuterium Engine Light Deuterium Engine Light Deuterium Engine Nuclear Core Light Nuclear Core Light Treads Armored Treads Aluminum Leg Aluminum Leg Titanium Leg Improved Hover Unit Improved Hover Unit Scrap Suit Heat Sink Large Storage Unit Large Matter Pod (150) Seismic Detector Seismic Detector Targeting Computer ECM Suite Light Armor Plating Light Armor Plating Improved Light Armor Plating Trap Extractor (0/4) Overtuned Pulse Rifle EM Pulse Cannon Particle Cannon High-powered Shotgun KE Penetrator Mining Laser Mace Scythe DRS Beacon (Ready) Peak State ------------ > --- POWER ------------ Light Nuclear Core > --- PROPULSION ------- Improved Treads Overtuned Scrapsphere > --- UTILITY ---------- Humpback > --- WEAPON ----------- Particle Cannon Grenade Launcher > --- INVENTORY -------- Light Deuterium Engine Light Deuterium Engine Light Deuterium Engine Nuclear Core Light Nuclear Core Light Treads Armored Treads Aluminum Leg Aluminum Leg Titanium Leg Improved Hover Unit Improved Hover Unit Scrap Suit Heat Sink Large Storage Unit Large Matter Pod Seismic Detector Seismic Detector Targeting Computer ECM Suite Light Armor Plating Light Armor Plating Improved Light Armor Plating Trap Extractor Overtuned Pulse Rifle EM Pulse Cannon Particle Cannon High-powered Shotgun KE Penetrator Rocket Launcher Mining Laser Mace Scythe DRS Beacon [Rating: 21] Favorites ----------- Power Light Nuclear Core Engine Light Ion Engine Power Core Light Nuclear Core Propulsion Improved Treads Treads Improved Treads Wheel Overtuned Scrapsphere Utility Humpback Device Seismic Detector Storage Humpback Weapon Particle Cannon Energy Cannon Particle Cannon Ballistic Gun Assault Rifle Launcher Grenade Launcher Special Weapon Mining Laser Build | -11 -10 -10 -10 -8 ------- Run | Yrd Mat Min Sub Scr Slots Evolved . | . . . . . Power . | . . . . . Propulsion . | . . . . . Utility . | . . . . . Weapon . | . . . . . Parts Attached 20 | 7 4 2 . 7 Power 4 | 1 1 1 . 1 Engine 3 | 1 1 1 . . Core 1 | . . . . 1 Reactor . | . . . . . Propulsion 5 | 2 . . . 3 Treads 4 | 2 . . . 2 Leg . | . . . . . Wheel 1 | . . . . 1 Hover . | . . . . . Flight . | . . . . . Utility 5 | 2 1 . . 2 Device 2 | 1 . . . 1 Storage 3 | 1 1 . . 1 Processor . | . . . . . Hackware . | . . . . . Protection . | . . . . . Artifact . | . . . . . Weapon 6 | 2 2 1 . 1 Energy Gun . | . . . . . Energy Cannon 1 | . 1 . . . Ballistic Gun 2 | 2 . . . . Ballistic Cannon . | . . . . . Launcher 2 | . . 1 . 1 Special Weapon 1 | . 1 . . . Impact Weapon . | . . . . . Slashing Weapon . | . . . . . Piercing Weapon . | . . . . . Special Melee Weapon . | . . . . . Unidentified Prototypes . | . . . . . Parts Lost 7 | . . 1 . 6 Power 1 | . . 1 . . Propulsion 2 | . . . . 2 Utility 2 | . . . . 2 Weapon 2 | . . . . 2 Highest Loss Streak 4 | . . 1 . 4 To Critical Strikes . | . . . . . Average Backups 26 | 4 9 15 15 29 Power 3 | . . . . 4 Propulsion 5 | 2 2 4 4 6 Utility 10 | . 4 8 8 11 Weapon 6 | . 2 3 3 7 Tool/Special . | . . . . . Unused Backups 35 | . 5 . . 30 Power 6 | . . . . 6 Propulsion 10 | . 4 . . 6 Utility 11 | . . . . 11 Weapon 8 | . 1 . . 7 Tool/Special . | . . . . . Average Slot Usage (%) 89 | . 100 94 100 88 Engine 4 | . 14 8 14 2 Core 9 | . . . . 11 Treads 18 | . 28 28 28 16 Wheel 9 | . . . . 11 Device 4 | . 14 14 14 2 Storage 14 | . 14 14 14 14 Energy Cannon 13 | . 9 14 14 14 Ballistic Gun 1 | . 15 11 . . Launcher 12 | . . 2 14 13 Peak Build Rating 21 | 7 9 9 9 21 Average Rating 16 | 5 7 8 9 17 On Entrance 6 | . 7 9 9 9 Avg Prop Armor Cover (%) 4 | . . . . 4 Naked Turns . | . . . . . Heaviest Build 213 | 12 32 33 31 213 Greatest Support 43 | 40 40 40 40 43 Greatest Overweight (x) 70 | . . . . 70 Average Overweight (x) 3 | . . . . 5 Largest Inventory Capacity 35 | 8 15 15 15 35 Average Capacity 27 | 7 9 15 15 30 Most Carried 35 | 8 15 15 15 35 Average Carried 27 | 4 9 15 15 30 Final Capacity 35 | 8 15 15 15 35 Final Carried 34 | 8 15 15 15 34 Class Distribution -------------------- 67% | Hauler-Mutant 32% | Mutant Dominant Class ---------------- Mutant | -10/Materials Mutant | -10/Mines Mutant | -10/Subcaves Hauler-Mutant | -8/Scraptown Resources | -11 -10 -10 -10 -8 ----------- Run | Yrd Mat Min Sub Scr Matter Collected 711 | 278 136 105 12 180 Remotely . | . . . . . Salvage Created 476 | 49 207 72 . 148 Parts 33 | 8 15 6 . 4 Haulers Intercepted . | . . . . . Recyclers Shooed . | . . . . . Parts Field Recycled . | . . . . . Retrieved Matter . | . . . . . Parts Self-Destructed 5 | . . . 5 . Prevented . | . . . . . Parts Restored . | . . . . . Kills | -11 -10 -10 -10 -8 ------- Run | Yrd Mat Min Sub Scr Combat Hostiles Destroyed 12 | . 6 3 . 3 Guns 5 | . 4 1 . . Cannons 6 | . 2 2 . 2 AOE 1 | . . . . 1 Classes Destroyed 7 | 1 3 . . 3 Tunneler 3 | 2 . 1 . . Watcher 2 | . 2 . . . Swarmer 6 | . 3 3 . . Grunt 3 | . 3 . . . Federalist 1 | . . . . 1 Ranger 1 | . . . . 1 Scrapper 1 | . . . . 1 Best Kill Streak 3 | 1 3 3 . 2 Combat Bots Only 3 | . 3 3 . 2 Max Kills in Single Turn 2 | 1 2 1 . 1 Gunslinging 1 | . 1 . . . Exploded 1 | . . . . 1 Melee . | . . . . . Uniques/NPCs Destroyed . | . . . . . Combat | -11 -10 -10 -10 -8 -------- Run | Yrd Mat Min Sub Scr Hostile Shots Fired 93 | . 24 20 . 49 Missed 30 | . 6 7 . 17 Hits 63 | . 18 13 . 32 Projectile 63 | . 18 13 . 32 Critical Strikes 3 | . . . . 3 Damage Taken 1043 | . 231 113 . 699 Core 257 | . 33 39 . 185 Absorbed by Shields . | . . . . . Core Remaining (%) 100 | 100 . . . . Volleys Fired 48 | 8 22 14 . 4 Largest 2 | 2 2 2 . 2 Hottest 101 | 40 100 88 . 101 Shots Fired 86 | 14 42 24 . 6 Gun 50 | 14 26 10 . . Cannon 32 | . 14 14 . 4 Launcher 2 | . . . . 2 Special 2 | . 2 . . . Kinetic 50 | 14 26 10 . . Thermal 34 | . 16 14 . 4 Explosive 2 | . . . . 2 Electromagnetic . | . . . . . Robot Hit Streak 7 | 5 7 3 . 5 Robot Miss Streak 6 | 1 5 6 . 1 Penetration Max . | . . . . . Secondary Targets 1 | . 1 . . . Max Gunslinging Chain 1 | . 1 . . . Shots Hit Robots 48 | 10 25 9 . 4 Core Hits 21 | 2 12 4 . 3 Critical Kills . | . . . . . Critical Parts Destroyed 1 | 1 . . . . Critical Strikes 1 | 1 . . . . Destroy 1 | 1 . . . . Melee Attacks . | . . . . . Impact . | . . . . . Slashing . | . . . . . Piercing . | . . . . . Sneak Attacks . | . . . . . Combat Hostiles . | . . . . . Follow-up Attacks . | . . . . . Damage Inflicted 844 | 116 387 166 . 175 Guns 361 | 116 182 63 . . Cannons 370 | . 205 103 . 62 Explosions 113 | . . . . 113 Melee . | . . . . . Ramming . | . . . . . Kinetic 361 | 116 182 63 . . Thermal 370 | . 205 103 . 62 Explosive 113 | . . . . 113 Electromagnetic . | . . . . . Impact . | . . . . . Slashing . | . . . . . Piercing . | . . . . . Highest Corruption . | . . . . . Average Corruption . | . . . . . Corruption Purged . | . . . . . Corruption Blocked . | . . . . . Overload Shots . | . . . . . Overflow Damage 1 | . . 1 . . Projectiles 1 | . . 1 . . Explosions . | . . . . . Melee . | . . . . . Knockbacks . | . . . . . Impact . | . . . . . Kinetic . | . . . . . Secondary . | . . . . . Self-Inflicted Damage . | . . . . . Shots . | . . . . . Rammed . | . . . . . Targets Rammed . | . . . . . Kicked . | . . . . . Crushed . | . . . . . Highest Temperature 205 | . 138 205 . 194 Average Temperature 73 | . 51 112 . 59 Received Heat Transfer 507 | . 90 . . 417 Siege Activations . | . . . . . Martial Activations . | . . . . . Shielding Activations . | . . . . . Robots Disrupted . | . . . . . Combat Hostiles . | . . . . . Robots Corrupted . | . . . . . Combat Hostiles . | . . . . . Parts Fried . | . . . . . Impact Corruptions . | . . . . . Robots Melted . | . . . . . Combat Hostiles . | . . . . . Parts Melted 1 | . . . . 1 Heat Transferred 666 | . 370 185 . 111 Parts Sabotaged . | . . . . . Parts Stolen . | . . . . . Parts Stripped . | . . . . . Power Chain Reactions . | . . . . . Alert | -11 -10 -10 -10 -8 ------- Run | Yrd Mat Min Sub Scr Maximum Alert Level . | . . . . . Low Security (%) 100 | 100 100 100 . . Level 1 . | . . . . . Level 2 . | . . . . . Level 3 . | . . . . . Level 4 . | . . . . . Level 5 . | . . . . . High Security . | . . . . . Max Security . | . . . . . Peak Influence 65 | 5 65 60 . . Initial . | . . . . . Average 9 | . 8 22 . . Influence Increases 282 | 10 197 75 . . Destroy 0b10 Robot/C 180 | . 120 60 . . Destroy 0b10 Robot/NC 25 | 10 10 5 . . Destroy Leader 44 | . 34 10 . . Successful Hack 30 | . 30 . . . Destroy Structure 3 | . 3 . . . Influence Decreases 282 | 10 196 76 . . Entered New Map 1 | . . 1 . . Time Decay 281 | 10 196 75 . . Squads Dispatched 1 | . 1 . . . Investigation . | . . . . . Extermination . | . . . . . Reinforcement 1 | . 1 . . . Assault . | . . . . . Garrison . | . . . . . Intercept . | . . . . . Searches Triggered . | . . . . . Construction Impeded . | . . . . . Haulers Reinforced . | . . . . . Active Scanning Responses . | . . . . . Cargo Convoy Interrupts . | . . . . . Stealth | -11 -10 -10 -10 -8 --------- Run | Yrd Mat Min Sub Scr Distress Signals . | . . . . . Communications Jammed . | . . . . . Distress Signals . | . . . . . Times Spotted 25 | . 12 3 . 10 Peak Tracking Total 3 | . 3 3 . 3 Tactical Retreats . | . . . . . Traps | -11 -10 -10 -10 -8 ------- Run | Yrd Mat Min Sub Scr Traps Triggered 1 | . 1 . . . Indirectly . | . . . . . Trap Hack Attempts . | . . . . . Triggered . | . . . . . Disarmed . | . . . . . Reprogrammed . | . . . . . Reused . | . . . . . Traps Extracted . | . . . . . Installed . | . . . . . Triggered . | . . . . . Machines | -11 -10 -10 -10 -8 ---------- Run | Yrd Mat Min Sub Scr Machines Disabled . | . . . . . Max in Single Turn . | . . . . . Machines Repaired . | . . . . . Machines Dismantled . | . . . . . Machines Sabotaged . | . . . . . Overloaded Fab Kills . | . . . . . Hacking | -11 -10 -10 -10 -8 --------- Run | Yrd Mat Min Sub Scr Machines Accessed 14 | . 6 . . 8 Terminals 6 | . 6 . . . Fabricators . | . . . . . Repair Stations . | . . . . . Recycling Units . | . . . . . Scanalyzers . | . . . . . Garrison Access . | . . . . . Total Hacks 72 | . 22 . . 50 Successful 62 | . 12 . . 50 Failed 10 | . 10 . . . Catastrophic 2 | . 2 . . . Database Lockouts . | . . . . . Manual 4 | . 4 . . . Terminals 22 | . 22 . . . Fabricators . | . . . . . Repair Stations . | . . . . . Recycling Units . | . . . . . Scanalyzers . | . . . . . Garrison Access . | . . . . . Terminal Hacks 62 | . 12 . . 50 Record 52 | . 2 . . 50 Prototype ID Bank 1 | . 1 . . . Terminal Index 1 | . 1 . . . Locate Traps 1 | . 1 . . . Dispatch Records 2 | . 2 . . . Hauler Manifests 2 | . 2 . . . Zone Layout 3 | . 3 . . . Fabricator Hacks . | . . . . . Repair Station Hacks . | . . . . . Recycling Unit Hacks . | . . . . . Scanalyzer . | . . . . . Garrison Access Hacks . | . . . . . Unauthorized Hacks . | . . . . . Terminals . | . . . . . Fabricators . | . . . . . Repair Stations . | . . . . . Recycling Units . | . . . . . Scanalyzers . | . . . . . Garrison Access . | . . . . . Data Cores Recovered . | . . . . . Used . | . . . . . Hacking Detections 4 | . 4 . . . Full Trace Events . | . . . . . Feedback Events . | . . . . . Feedback Blocked . | . . . . . Robot Schematics Acquired . | . . . . . Robots Built . | . . . . . Authchips . | . . . . . Time . | . . . . . Total Robot Build Rating . | . . . . . Part Schematics Acquired . | . . . . . Parts Built . | . . . . . Authchips . | . . . . . Time . | . . . . . Total Part Build Rating . | . . . . . Part Studies Acquired . | . . . . . Parts Repaired . | . . . . . Time . | . . . . . Parts Recycled . | . . . . . Recycled Matter . | . . . . . Retrieved Matter . | . . . . . Retrieved Components . | . . . . . Parts Scanalyzed . | . . . . . Part Schematics Acquired . | . . . . . Parts Damaged . | . . . . . Bothacking | -11 -10 -10 -10 -8 ------------ Run | Yrd Mat Min Sub Scr Used RIF Installer . | . . . . . Robots Hacked . | . . . . . Non-combat . | . . . . . Combat . | . . . . . Robot Hacks Applied . | . . . . . Relay Couplers Released . | . . . . . Fabnet Peak Effective % . | . . . . . Robots Rewired . | . . . . . Allies Hacked . | . . . . . Hacks Repelled . | . . . . . Allies | -11 -10 -10 -10 -8 -------- Run | Yrd Mat Min Sub Scr Total Allies . | . . . . . Largest Group . | . . . . . Highest-Rated Group . | . . . . . Highest-Rated Ally . | . . . . . Total Orders . | . . . . . Ally Attacks . | . . . . . Total Damage . | . . . . . Kills . | . . . . . Allies Corrupted . | . . . . . Allies Melted 2 | . . . . 2 Intel | -11 -10 -10 -10 -8 ------- Run | Yrd Mat Min Sub Scr Active Infowar (turns) 4086 | 62 1371 197 139 2317 Seismic 4086 | 62 1371 197 139 2317 Robot Analysis Total . | . . . . . Derelict Logs Recovered . | . . . . . Drone Launches . | . . . . . Drone Recoveries . | . . . . . Exploration | -11 -10 -10 -10 -8 ------------- Run | Yrd Mat Min Sub Scr Turns Passed 12775 | 160 1371 197 139 10908 Spaces Moved 3391 | 78 634 97 80 2502 Core 5 | 3 . . . 2 Treads 3210 | 75 634 97 80 2324 Legs . | . . . . . Wheels 176 | . . . . 176 Hover . | . . . . . Flight . | . . . . . Fastest Speed 50 | 50 160 160 160 110 Average Speed 359 | 155 160 160 160 429 Slowest Speed 3550 | 160 160 160 160 3550 Overloaded Moves . | . . . . . Propulsion Burnouts . | . . . . . Robots Hopped . | . . . . . Potential Cave-ins . | . . . . . Cave-ins Triggered . | . . . . . Exploration Rate (%) 44 | 5 92 25 6 96 Regions Visited 4 Branch Regions 3 Pre-discovered Areas 1 | . . . . 1 Known Exits Taken . | . . . . . Unknown Exits Taken 4 | 1 1 1 1 . Scrap Searched 9 | . . 1 . 8 Spaces Dug 2 | . 2 . . . Terrain Destroyed 5 | . 2 . . 3 Melee . | . . . . . Projectile 2 | . 2 . . . AOE 3 | . . . . 3 Terrain Rammed . | . . . . . Walls Destroyed . | . . . . . Machines Disabled . | . . . . . Actions | -11 -10 -10 -10 -8 --------- Run | Yrd Mat Min Sub Scr Total 3946 | 100 948 113 91 2694 Wait 396 | . 268 . 11 117 Move 3387 | 77 633 96 79 2502 Hop . | . . . . . Pick Up 65 | 8 13 . . 44 Fast Attach 10 | 7 1 1 . 1 Attach 2 | . . . . 2 Detach . | . . . . . Swap 10 | . 3 2 1 4 Drop 28 | . 8 . . 20 Fire 48 | 8 22 14 . 4 Melee . | . . . . . Ram . | . . . . . Kick . | . . . . . Crush . | . . . . . Escape Stasis . | . . . . . Rewire . | . . . . . Trap . | . . . . . Miscellaneous . | . . . . . Route ------- -11/Scrapyard -10/Materials (discovered 4 exits: [*Mat x3] / [*Min]) -10/Mines -10/Subcaves -8/Scraptown (discovered 2 exits: [*Fac x2]) History --------- Turn | Location | Event 10 | -11/Scrapyard | Discovered new exit (range 13) 161 | -11/Scrapyard | Entered Materials 313 | -10/Materials | Build established: Mutant 613 | -10/Materials | Discovered new exit (range 10) 960 | -10/Materials | Discovered new exit (range 3) 1251 | -10/Materials | Discovered new exit (range 8) 1300 | -10/Materials | Discovered new exit (range 19) 1532 | -10/Materials | Entered Mines 1717 | -10/Mines | Discovered new exit (range 7) 1729 | -10/Mines | Entered Subcaves 1730 | -10/Subcaves | Approached by a straggling Scientist 1868 | -10/Subcaves | Entered Scraptown 2488 | -8/Scraptown | Discovered new exit (range 9) 2763 | -8/Scraptown | Visited Comm Corps 2868 | -8/Scraptown | Visited Shadow of the Wyrm 2940 | -8/Scraptown | Visited Spacefarers 3067 | -8/Scraptown | Visited Symbiants 3392 | -8/Scraptown | Visited Assassins FH 3612 | -8/Scraptown | Visited UFD Registry 3636 | -8/Scraptown | Visited Fellowship of the Rings 3688 | -8/Scraptown | Visited TADAMA 4076 | -8/Scraptown | Registered with UFD as "Gunrider" 4110 | -8/Scraptown | Visited DA-N13 Charitable Foundation 4129 | -8/Scraptown | Found DCF Scrap (28 items) 4217 | -8/Scraptown | Lost 4 parts (1n2u1w) 4426 | -8/Scraptown | Build established: Hauler-Mutant 4511 | -8/Scraptown | Visited Curators Association 4738 | -8/Scraptown | Visited Abandonware Association 4801 | -8/Scraptown | Learned abandonware demo "REVENGE.EXE" 4801 | -8/Scraptown | Learned abandonware demo "TRNCOAT.EXE" 7112 | -8/Scraptown | Visited Scrap Suit Storage 7218 | -8/Scraptown | Found Scrap Suit 7431 | -8/Scraptown | Visited Derelict Rescue Squad 7484 | -8/Scraptown | Found DRS Beacon 7661 | -8/Scraptown | Visited Modified Component R&D 8136 | -8/Scraptown | Discovered new exit (range 5) 8946 | -8/Scraptown | Visited Observation Area 9526 | -8/Scraptown | Visited Research Penetration Think Tank 9975 | -8/Scraptown | Visited Junk Cannon Lab 12199 | -8/Scraptown | Met Optimus 12199 | -8/Scraptown | Accepted into 0bPrime 12599 | -8/Scraptown | Civil war broke out across Scraptown 12675 | -8/Scraptown | Lost 5 allies 12692 | -8/Scraptown | Optimus destroyed in the chaos of civil war 12746 | -8/Scraptown | Core integrity fell below 50% 12764 | -8/Scraptown | Lost 5 allies 12766 | -8/Scraptown | Core integrity fell below 20% 12776 | -8/Scraptown | Destroyed by W4-95Q(j) with Overtuned Pulse Rifle Last Messages --------------- 12696_ Acquired KE Penetrator. 12697_ JJ-0YT(E): "Give up, none of you can hope to defeat the full might of 0bPrime!" 12700_ DP-FQX(E) heat short circuits Ovr. Treads. 12706_ DP-FQX(E) destroyed. 12711_ JJ-0YT(E) destroyed. 12741_ Machine disabled. 12743_ Q2-4MF(j) cannibalizes Imp. Deuterium Engine to repair Lgt. Deuterium Engine. 12754_ Bolt penetrates 8R-I8F(x). 12754_ 8R-I8F(x) destroyed. 12756_ Critical hit (Burn: +50). 12758_ Grenade Launcher destroyed. 12768_ Mak. Microdissipator Network melted. 12768_ Q2-4MF(j) destroyed. 12768_ Imp. Treads destroyed. 12769_ Bolt penetrates LU-A86(g). 12771_ Critical hit (Burn: +50). 12771_ LU-A86(g) destroyed. 12773_ Critical hit (Burn: +50). Map ----- +----------------------------------------------------+ | ?????????????????????????????????????????????????? | | ?????????????????????????????????????????????????? | | ?????????????????????????????????????????????????? | | ?????????????????????????????????????????????????? | | ?????????????????????????????????????????????????? | | ?????????????????????????????????????????????????? | | ?????????????????????????????????????????????????? | | ????????????????????????????????#####????????????? | | ????????????????????????????????#"""#????????????? | | ?###################???####?????#" "#????????????? | | #"""##"""##""|##"""#??##*!##????# < #????????????? | | #"" ##""!##""|##!!"####%!! ###### ##???????????? | | #"" === #???????????? | | # [*! #???????????? | | #######################=!% ###########???????????? | | ??????????????????????##=%##############?????????? | | ????????????############%!#""""""""""""#?????????? | | ????????????#"""""""""##=!#" " #"""""""#?????????? | | ????????????#" "##[[# #=[ " "#?????????? | | ????????????#" """"" "## !####+# ="#?????????? | | ??###########" "???" "## #""" "#?????????? | | ??#""""""""##" "???" "## #"[ "#?????????? | | ??#""""" ""##" "???" "## #"" """""#?????????? | | ??#"" "##" "???" "## #" "#####?????????? | | #?#"" "##" """"" "## #X """""#?????????? | | #?#"" ##" "## @## [ [ #?????????? | | #?#"" "## ""## #" #?????????? | | #?#" ## ## #" #?????????? | | #?#### ########### ##### #" ###########?????????? | | ###### ########### ##### ;" ###############?????? | | """""" """"""""""" """ ## """"""""#?????? | | ## " " " "#?????? | | "# &"#?????? | | ## &"#?????? | | % !! "# ! &"#?????? | | =%= *%! ""#?????? | | """"""""""""""""""""""" x*%[## " " " "#?????? | | """"""""""""""""""""""" j % ## """"""""#?????? | | #### ################"" ! ##############?????? | | ##????????#" "##########?????????? | | X"#????????#""=% "## #"""""#?????????? | | "" "" ##????????#"" ![ "## !!!! #?????????? | | "" "" X"#??????###"" %= "## ##"#??????? | | " " ######### #""==!=!"## X" #??????? | | "" *[[%!![ #??????? | | "" =%!!==!"## *#??????? | | " " ######### # =!!!! "## !! !! * #??????? | | "" "" ""#??????##" "%[= "## #"""""#""#??????? | | "" "" ##??????# # "*! "#############??????? | | X"#?????# ##"=[* "#????"?????????????? | +----------------------------------------------------+ Best States ------------- Heat Dissipation 25 Energy Generation 14 Energy Capacity 250 Matter Stores 300 Matter Capacity 300 Sight Range 16 Terrain Scan Density 10 Evasion (%) 40 Recoil Reduction 2 Item Schematics ----------------- None Robot Schematics ------------------ None Fabricated ------------ Nothing Repaired ---------- Nothing Studied --------- None Alien Tech Used ----------------- None Achievements -------------- I Have A Map? Challenges ------------ None Game ------ Seed HackingPiercelightBlaster Manual? 0 Play Time 01:14:07 Cumulative 80.6 hours Start 2026.04.23 @ 14:23:45 End 2026.04.23 @ 16:25:36 Sessions 1 Manual Loads 0 Difficulty Rogue Special Mode None Game No. 102 Rogue 102 Adventurer 0 Explorer 0 Win Type - Total 0 Types 0/0/0/0/0/0/0/0/0/0 Lore% 34 Gallery% 25 Achievement% 20 Wizard Run 0 Options --------- Layout 0 ASCII 0 Keyboard 0 Movement Mouse Keybinds 0 Fullscreen 1 Font 18/SmallcapsGlow Map View 76x50 Zoom Use 0% Tactical HUD 1 Map Filters NONE Filters LOW_CONTRAST(13,24,33) Steam 1 RUN: 736de84b-a18b-4871-bbcc-2439c75371c0